[Event "XVI Memorial Ezequiel Martin 2024"]
[Site "Mollet"]
[Date "2024.06.09"]
[Round "6.6"]
[White "Aloma Vidal, Robert"]
[Black "Silva Cerda, Mark Valentin"]
[Result "1-0"]
[ECO "A13"]
[WhiteElo "2428"]
[BlackElo "1998"]
[Annotator "RC"]
[PlyCount "77"]
[EventDate "2024.06.01"]
[EventType "swiss"]
[EventCountry "ESP"]
[SourceTitle "playchess.com"]
[Source "ChessBase"]
[SourceQuality "1"]
[TimeControl "900+5"]

1. c4 {[%emt 0:00:06]} e6 {[%emt 0:00:02]} 2. g3 {[%emt 0:00:01]} d5 {[%emt 0:00:02]} 3. Bg2 {[%emt 0:00:01]} Nf6 {[%emt 0:00:02]} 4. Nf3 {[%emt 0:00:01]} Bd6 {[%emt 0:00:04]} 5. O-O {[%emt 0:15:21]} O-O {[%emt 0:00:02]} 6. b3 {[%emt 0:00:00]} dxc4 {[%emt 0:15:23]} 7. bxc4 {[%emt 0:00:00]} e5 {[%emt 0:00:00]} 8. Nc3 {[%emt 0:00:00]} c6 {[%emt 0:00:00]} 9. Bb2 {[%emt 0:00:00]} Na6 {[%emt 0:00:00]} 10. e3 {[%emt 0:00:00]} Re8 {[%emt 0:00:00]} 11. d4 {[%emt 0:00:00]} exd4 {[%emt 0:00:00]} 12. exd4 {[%emt 0:00:00]} Bg4 {[%emt 0:00:00]} 13. h3 {[%emt 0:00:00]} Bh5 {[%emt 0:00:00]} 14. Qb3 {[%emt 0:00:00]} Rb8 {[%emt 0:00:00]} 15. Rfe1 {[%emt 0:00:00]} Nc7 {[%emt 0:00:00]} 16. Rxe8+ {[%emt 0:00:00]} Qxe8 {[%emt 0:00:00]} 17. Re1 {[%emt 0:00:00]} Qd8 {[%emt 0:00:00]} 18. d5 {[%emt 0:00:00]} b5 {[%emt 0:00:00]} 19. c5 {[%emt 0:00:00]} Bxc5 {[%emt 0:00:00]} 20. Ne5 {[%emt 0:00:00]} Qd6 {[%emt 0:00:00]} 21. g4 {[%emt 0:00:00]} Bg6 {[%emt 0:00:00]} 22. Nxc6 {[%emt 0:00:00]} Re8 {[%emt 0:00:44]} 23. Rxe8+ {[%emt 0:00:00]} Nfxe8 {[%emt 0:00:01]} 24. Nxb5 {[%emt 0:00:00]} Nxb5 {[%emt 0:00:35]} 25. Qxb5 {[%emt 0:00:00]} h5 {[%emt 0:00:05]} 26. Be5 {[%emt 0:00:00]} Qf8 {[%emt 0:00:05]} 27. Qb8 {[%emt 0:00:00]} a5 {[%emt 0:00:07]} 28. Qd8 {[%emt 0:00:00]} hxg4 {[%emt 0:00:05]} 29. hxg4 {[%emt 0:02:00]} f6 {[%emt 0:00:01]} 30. Bg3 {[%emt 0:00:00]} Bf7 {[%emt 0:00:03]} 31. Qxa5 {[%emt 0:00:00]} g5 {[%emt 0:00:04]} 32. Qd8 {[%emt 0:00:00]} Kg7 {[%emt 0:00:06]} 33. a4 {[%emt 0:00:00]} Qh8 {[%emt 0:00:08]} 34. Ne7 {[%emt 0:00:00]} Bxe7 {[%emt 0:00:05]} 35. Qxe7 {[%emt 0:00:00]} Qh7 {[%emt 0:00:03]} 36. Be4 {[%emt 0:00:00]} Qh3 {[%emt 0:00:03]} 37. Bf5 {[%emt 0:00:00]} Kg8 {[%emt 0:00:14]} 38. Be6 {[%emt 0:00:00]} Bxe6 {[%emt 0:00:11]} 39. Qxe8+ {[%emt 0:00:00]} 1-0

[Event "XVI Memorial Ezequiel Martin 2024"]
[Site "Mollet"]
[Date "2024.06.09"]
[Round "7.1"]
[White "Garriga Cazorla, Pere"]
[Black "Lazaro Pujol, Abel"]
[Result "1-0"]
[ECO "D38"]
[WhiteElo "2471"]
[BlackElo "2356"]
[Annotator "TA"]
[PlyCount "75"]
[EventDate "2024.06.01"]
[EventType "swiss"]
[EventCountry "ESP"]
[SourceTitle "playchess.com"]
[Source "ChessBase"]
[SourceQuality "1"]
[TimeControl "900+5"]

{[%evp 13,75,14,1,-23,11,0,0,0,0,0,0,0,0,0,27,24,36,9,58,52,70,62,62,72,86,75,126,136,182,179,200,202,239,175,346,157,413,423,843,834,835,869,892,875,1298,896,1321,1317,4698,783,770,758,739,683,5381,1131,29985,29978,5929,789,760,758,726,730]} 1. d4 {[%emt 0:00:03]} d5 {[%emt 0:00:16]} 2. c4 {[%emt 0:00:01]} e6 {[%emt 0:00:01]} 3. Nf3 {[%emt 0:00:02]} Nf6 {[%emt 0:00:02]} 4. Nc3 {[%emt 0:00:02]} Bb4 {[%emt 0:00:02]} 5. Qa4+ {[%emt 0:00:01]} Nc6 {[%emt 0:00:01]} 6. a3 {[%emt 0:00:01]} Bxc3+ {[%emt 0:00:13]} 7. bxc3 {[%emt 0:00:02]} Bd7 {[%emt 0:00:09][%cal Oc6d4]} 8. Qc2 {[%emt 0:00:04]} O-O {[%emt 0:00:57]} 9. Bg5 {[%emt 0:00:02]} h6 {[%emt 0:00:31]} 10. Bh4 {[%emt 0:00:01] The position is equal.} Na5 {[%emt 0:00:42]} 11. cxd5 {[%emt 0:00:04]} exd5 {[%emt 0:13:06]} 12. e3 {[%emt 0:00:12]} c5 {[%emt 0:00:05]} 13. Ne5 {[%emt 0:15:35]} Be6 {[%emt 0:00:00]} 14. Bd3 {[%emt 0:00:00]} Rc8 {[%emt 0:00:00]} 15. O-O {[%emt 0:00:10]} Nc6 {[%emt 0:00:00]} (15... g5 $11 16. Bg3 c4) 16. Qb1 $14 {[%emt 0:00:05]} Nxe5 {[%emt 0:00:00]} 17. dxe5 {[%emt 0:00:00]} g5 $1 {[%emt 0:00:00]} 18. Bg3 {[%emt 0:00:00] White is more active.} Nh5 {[%emt 0:00:00]} 19. f4 {[%emt 0:00:00]} f5 {[%emt 0:00:00]} ({Black should try} 19... Nxg3 20. hxg3 Qe7) 20. Qxb7 $16 {[%emt 0:00:20]} Rf7 {[%emt 0:00:00]} (20... c4 $16) 21. Qa6 $18 {[%emt 0:00:05]} Qe8 {[%emt 0:00:00]} 22. Rab1 {[%emt 0:00:05]} Rg7 {[%emt 0:00:00]} 23. Rb7 {[%emt 0:00:05]} Rg6 $2 {[%emt 0:00:55] [#] Black is weak on the dark squares} (23... c4) 24. Bb5 {[%emt 0:00:05]} (24. Rxa7 gxf4 25. Bb5 (25. exf4 Nxg3 26. hxg3 c4 $18) (25. Bxf4 d4 $18) 25... Bd7 $18) (24. Be2 $18 Ng7 25. Qxa7 (25. Rxa7 gxf4 26. Bxf4 d4 $18)) 24... Qf8 $2 {[%emt 0:00:00] Loses the game.} (24... Bd7 $16 25. Qa4 (25. Qxa7 $2 Bxb5 26. Re7 Qc6 $19) 25... Bxb5 26. Qxb5 Qxb5 27. Rxb5 gxf4) 25. Bd7 {[%emt 0:00:05]} ({Resist} 25. Qxa7 Rg7 26. a4 Kh8 27. Rxg7 Nxg7 $18) ({Don't do} 25. Rxa7 Bf7 $18) 25... Bf7 {[%emt 0:00:00]} (25... Qf7 $142) 26. e6 {[%emt 0:00:00]} (26. Qxa7 Ra8 27. Bxf5 Rxa7 (27... Ra6 $2 28. Bh7+ Kg7 29. Rxf7+ Qxf7 30. Qxf7+ Kxf7 31. Be1 $18) 28. Rxa7 Qb8 $19) 26... Rd8 {[%emt 0:00:01]} 27. exf7+ {[%emt 0:00:00]} Qxf7 {[%emt 0:00:02]} 28. Qxa7 {[%emt 0:00:00] [#] fxg5 would now be deadly.} gxf4 {[%emt 0:00:22]} 29. exf4 {[%emt 0:00:00]} Nxg3 {[%emt 0:00:00]} 30. hxg3 {[%emt 0:00:00] White threatens Re1 and mate.} Rxg3 {[%emt 0:00:00]} 31. Rb8 {[%emt 0:00:00]} Rxb8 {[%emt 0:00:04]} 32. Qxb8+ {[%emt 0:00:00]} Kh7 {[%emt 0:00:02]} 33. Qc8 {[%emt 0:00:00][%csl LRc5,LRf5]} Kg7 {[%emt 0:00:11]} 34. Bxf5 {[%emt 0:00:00]} Qf6 {[%emt 0:00:05]} 35. Qd7+ {[%emt 0:00:00]} Qf7 {[%emt 0:00:07]} 36. Qxf7+ {[%emt 0:00:00] White is clearly winning.} Kxf7 {[%emt 0:00:01]} 37. Rc1 {[%emt 0:00:00]} Kf6 {[%emt 0:00:05]} 38. Kf2 {[%emt 0:00:00] Weighted Error Value: White=0.27 (precise) /Black=0.63.  Loses game:     	---       	Black=1      Missed win:     	White=1     	---        Mistake:       	---       	Black=5      Inaccurate:     	---       	Black=2      OK:         	White=11    	Black=4      Best:        	White=1     	---        Strong:       	---       	Black=1} 1-0

[Event "XVI Memorial Ezequiel Martin 2024"]
[Site "Mollet"]
[Date "2024.06.09"]
[Round "7.2"]
[White "Narciso Dublan, Marc"]
[Black "Aloma Vidal, Robert"]
[Result "1/2-1/2"]
[ECO "B24"]
[WhiteElo "2432"]
[BlackElo "2428"]
[Annotator "TA"]
[PlyCount "141"]
[EventDate "2024.06.01"]
[EventType "swiss"]
[EventCountry "ESP"]
[SourceTitle "playchess.com"]
[Source "ChessBase"]
[SourceQuality "1"]
[TimeControl "900+5"]

{[%evp 9,141,38,62,40,37,25,12,10,29,14,19,11,6,0,58,36,89,82,132,52,49,50,44,43,30,42,82,93,118,110,106,107,183,127,126,79,83,78,91,59,74,27,33,42,359,239,247,120,302,15,22,0,255,268,261,252,285,265,487,482,478,476,460,438,564,533,491,422,498,481,522,540,612,611,593,458,967,967,883,502,502,461,1487,1247,1241,1235,1168,1067,5023,806,3438,2707,2159,187,173,0,0,0,0,0,0,0,850,850,813,723,12850,12744,29961,29959,29966,29968,29969,0,29970,0,0,0,0,0,0,0,0,0,0,0,0,0,0,0,0,0,0,0]} 1. e4 {[%emt 0:00:02]} c5 {[%emt 0:00:02]} 2. Nc3 {[%emt 0:00:07]} Nc6 {[%emt 0:00:03]} 3. g3 {[%emt 0:00:02]} Rb8 {[%emt 0:00:01]} 4. Nf3 {[%emt 0:00:07]} e6 {[%emt 0:00:14]} 5. Bg2 {[%emt 0:00:18]} b5 {[%emt 0:00:03][%cal Bb7b5,Bb5b4][%mdl 32]} 6. d4 {[%emt 0:00:16]} b4 {[%emt 0:00:25]} 7. Na4 {[%emt 0:00:28]} cxd4 {[%emt 0:00:52]} 8. Nxd4 {[%emt 0:00:29]} Nge7 {[%emt 0:01:43]} 9. Be3 {[%emt 0:04:47]} Qa5 {[%emt 0:01:58] Threatens to win with ...Nxd4.} 10. b3 {[%emt 0:00:07]} Ba6 {[%emt 0:00:06]} 11. f4 {[%emt 0:00:46]} g5 {[%emt 0:02:06]} 12. Qh5 {[%emt 0:02:24]} Bg7 {[%emt 0:02:22]} (12... gxf4 $14 13. Qxa5 Nxa5 14. gxf4 (14. Bxf4 Rc8 $11) 14... Rg8) 13. O-O-O $16 {[%emt 0:00:10] aiming for Nxc6.} (13. Qxg5 $2 Qxg5 (13... Bxd4 $2 14. Qxa5 Bc3+ 15. Nxc3 $18) 14. fxg5 Bxd4 $19 (14... Nxd4 $2 15. O-O-O $19)) 13... Bb7 {[%emt 0:01:19]} (13... gxf4 $142 14. Qxa5 Nxa5 15. gxf4 (15. Bxf4 $2 e5 $19) 15... Rg8) 14. Qxg5 {[%emt 0:02:19] White is much more active.} (14. Kb1 $16) 14... Qxg5 $14 {[%emt 0:00:17]} 15. fxg5 {[%emt 0:00:01]} Nxd4 {[%emt 0:01:27]} 16. Bxd4 {[%emt 0:00:05]} Bxd4 {[%emt 0:00:06]} 17. Rxd4 {[%emt 0:00:02]} Bc6 {[%emt 0:00:48]} 18. Nb2 {[%emt 0:01:32]} Rb5 {[%emt 0:00:21]} 19. h4 {[%emt 0:01:42]} a5 {[%emt 0:00:19]} 20. Rhd1 {[%emt 0:00:17]} Nc8 {[%emt 0:00:24]} (20... Ng6 $16) 21. Nc4 {[%emt 0:00:09]} (21. Bf1 $18 Re5 22. Nc4) 21... Rc5 {[%emt 0:00:24]} 22. Ne3 {[%emt 0:00:12]} (22. R4d2 $142) 22... h6 $16 {[%emt 0:00:11]} 23. gxh6 {[%emt 0:00:14]} Rxh6 {[%emt 0:00:08]} 24. Rf1 {[%emt 0:00:04]} Ke7 {[%emt 0:00:05]} 25. Rf2 {[%emt 0:00:14]} (25. Kb2 $16) 25... Na7 {[%emt 0:00:18]} 26. Rc4 $36 {[%emt 0:00:07][%mdl 2048] White is pushing.} Rhh5 {[%emt 0:00:29][%mdl 8192]} (26... Rxc4 $14 27. bxc4 (27. Nxc4 Rg6 $11) 27... Nc8) 27. Bf3 {[%emt 0:00:07]} Rhe5 {[%emt 0:00:16]} 28. g4 {[%emt 0:00:07]} (28. Nd5+ $1 $18 {is the precise move to win.} Kd6 29. Rxc5 Kxc5 30. Nf6) 28... Nb5 $2 {[%emt 0:00:08]} (28... Bb5 $16) 29. Rxc5 $2 {[%emt 0:00:05]} (29. Nd5+ $1 $18 Rcxd5 30. exd5 Bxd5 31. Bxd5 Rxd5 32. h5) 29... Rxc5 $11 {[%emt 0:00:02]} 30. g5 {[%emt 0:00:02]} Nd4 $2 {[%emt 0:00:03][%mdl 8192]} (30... Nd6 $1 $11 {and Black has nothing to worry.}) 31. Bh5 $18 {[%emt 0:00:03]} Bxe4 {[%emt 0:00:07]} 32. Rxf7+ {[%emt 0:00:01]} Kd8 {[%emt 0:00:01]} 33. Bd1 {[%emt 0:00:11]} (33. Rf8+ Kc7 34. Bd1 Nc6 $18) 33... Nf5 $2 {[%emt 0:00:28]} (33... Nb5 {was worth a try.} 34. Ng4 Nc3) 34. Nxf5 {[%emt 0:00:06]} Bxf5 {[%emt 0:00:01][%mdl 4096] Endgame. KRB-KRB} 35. h5 {[%emt 0:00:03]} Ke8 {[%emt 0:00:12]} 36. g6 {[%emt 0:00:01]} Be4 {[%emt 0:00:04]} 37. Rh7 {[%emt 0:00:07] Rh8+ is the strong threat.} Rg5 {[%emt 0:00:03]} 38. Kd2 {[%emt 0:00:06]} Bf5 {[%emt 0:00:09]} 39. Ke3 {[%emt 0:00:04]} Rg1 {[%emt 0:00:03]} 40. Be2 {[%emt 0:00:08]} Bxc2 {[%emt 0:00:02]} 41. Bb5 {[%emt 0:00:07]} Rg5 {[%emt 0:00:08]} 42. Bxd7+ {[%emt 0:00:02]} Kd8 {[%emt 0:00:02]} (42... Kf8 $142 43. Bc8 (43. Bxe6 Bxg6 44. hxg6 Re5+ 45. Kd3 Rxe6 $16) 43... a4 44. bxa4 (44. Bxe6 Bxg6 45. hxg6 Re5+ 46. Kf4 Rxe6 $11) 44... b3 45. axb3 (45. Bxe6 b2 $17) 45... Bxb3) 43. Kf4 {[%emt 0:00:09]} Rf5+ {[%emt 0:00:06]} 44. Kg3 {[%emt 0:00:01]} Rg5+ {[%emt 0:00:02]} 45. Kh4 {[%emt 0:00:02]} Re5 {[%emt 0:00:05]} (45... Rg1 $142 46. Bxe6 Bxg6 47. hxg6 Rxg6) 46. Ba4 {[%emt 0:00:08]} Re1 {[%emt 0:00:05]} 47. Rd7+ {[%emt 0:00:06]} Kc8 {[%emt 0:00:01]} 48. Re7 {[%emt 0:00:09]} Kd8 {[%emt 0:00:17]} 49. Re8+ {[%emt 0:00:04]} Kc7 {[%emt 0:00:01]} 50. g7 {[%emt 0:00:00]} Bh7 {[%emt 0:00:03]} 51. g8=Q $2 {[%emt 0:00:03]} (51. Rh8) 51... Bxg8 {[%emt 0:00:02]} 52. Rxg8 $2 {[%emt 0:00:01] KRB-KR} (52. h6 $18) 52... Rh1+ $11 {[%emt 0:00:02]} 53. Kg5 {[%emt 0:00:05]} Rg1+ {[%emt 0:00:01]} 54. Kf6 {[%emt 0:00:03]} Rxg8 {[%emt 0:00:02] KR-KB} 55. h6 {[%emt 0:00:01][%cal Bh5h6,Bh6h7][%mdl 32] Hoping for h7!} Rb8 $2 {[%emt 0:00:21][%mdl 8192]} (55... Rg2 $11) 56. h7 $1 $18 {[%emt 0:00:05][%cal Of6f7] And now Kf7! would win.} (56. Kxe6 Rh8 (56... Rb6+ $2 57. Kd5 $19) 57. Kd5 Kb6 $19 (57... Rxh6 $2 58. Be8 $19)) 56... Kd6 {[%emt 0:00:02] [#]} 57. Bb5 $1 {[%emt 0:00:24][%mdl 512]} e5 {[%emt 0:00:20]} (57... Rxb5 58. h8=Q) 58. Bc4 Rh8 {[%emt 0:00:00]} 59. Kg7 {[%emt 0:00:03]} Rxh7+ {[%emt 0:00:01]} 60. Kxh7 {[%emt 0:00:01] KB-K3P} Kc5 {[%emt 0:00:02]} 61. Kg6 $2 {[%emt 0:00:03]} (61. Ba6 Kd4 62. Kg6 Kc3 63. Kf5 Kd4 64. Bb7 Kd3 65. Kxe5 Kc2 66. Kd6) 61... Kd4 $2 {[%emt 0:00:04][%mdl 8192]} (61... a4 $11) 62. Kf5 $2 {[%emt 0:00:03]} (62. Bf1 {mates} Kc3 63. Kf5 Kc2 64. Bb5 (64. Kxe5 Kb2 $18) 64... Kd2 65. Kxe5 Kc3 66. Kd5 Kc2 67. Kc5) 62... a4 $11 {[%emt 0:00:09] The position is equal.} 63. bxa4 {[%emt 0:00:20][%cal Oa4a5] White wants to mate with a5!} Kxc4 64. Kxe5 {[%emt 0:00:01] Kd6 would kill now. KPP-KP} (64. Ke4 $5) 64... Kc5 $1 {[%emt 0:00:05]} 65. Ke4 {[%emt 0:00:01]} Kb6 {[%emt 0:00:02]} 66. Kd3 {[%emt 0:00:00]} Ka5 {[%emt 0:00:01]} 67. Kc2 {[%emt 0:00:04]} Kxa4 {[%emt 0:00:01]} 68. Kb2 {[%emt 0:00:00]} Ka5 {[%emt 0:00:01]} 69. Kb3 {[%emt 0:00:01]} Kb5 {[%emt 0:00:01]} 70. a3 {[%emt 0:00:01]} bxa3 {[%emt 0:00:01]} 71. Kxa3 {[%emt 0:00:01] White really could win this.   Weighted Error Value: White=0.63/Black=0.62.  Loses game:     	---       	Black=4      Missed win:     	White=1     	---        Mistake:       	White=5     	Black=6      Inaccurate:     	White=2     	Black=1      OK:         	White=17    	Black=19     Best:        	White=4     	Black=5      Strong:       	White=1     	Black=1} 1/2-1/2

[Event "XVI Memorial Ezequiel Martin 2024"]
[Site "Mollet"]
[Date "2024.06.09"]
[Round "7.3"]
[White "Hernandez, Cristian Andres"]
[Black "Ayats Llobera, Gerard"]
[Result "1/2-1/2"]
[ECO "B43"]
[WhiteElo "2350"]
[BlackElo "2466"]
[Annotator "TA"]
[PlyCount "204"]
[EventDate "2024.06.01"]
[EventType "swiss"]
[EventCountry "ESP"]
[SourceTitle "playchess.com"]
[Source "ChessBase"]
[SourceQuality "1"]
[TimeControl "900+5"]

{[%evp 115,203,-68,-64,-64,-64,-64,-64,-68,-68,-68,-68,-68,-68,-68,-54,-68,-61,-68,-54,-54,-54,-61,-54,-54,-54,-54,-54,-54,-54,-54,-54,-54,-54,-54,-54,-61,-8,-8,-8,0,0,0,0,0,0,0,0,-8,0,0,0,0,0,0,0,0,0,0,0,0,0,0,0,0,0,0,0,0,0,0,0,0,0,0,0,0,0,0,0,0,0,0,0,0,0,0,0,0,0,0]} 1. e4 {[%emt 0:15:10]} c5 {[%emt 0:00:06]} 2. Nf3 {[%emt 0:00:00]} e6 {[%emt 0:00:04]} 3. d4 {[%emt 0:00:00]} cxd4 {[%emt 0:00:01]} 4. Nxd4 {[%emt 0:00:00]} a6 {[%emt 0:00:03]} 5. Nc3 {[%emt 0:00:00]} b5 {[%emt 0:00:03]} 6. Bd3 {[%emt 0:00:00]} Qb6 {[%emt 0:00:03]} 7. Nb3 {[%emt 0:00:00]} Qc7 {[%emt 0:00:02]} 8. Qe2 {[%emt 0:00:00]} Bb7 {[%emt 0:00:03]} 9. O-O {[%emt 0:00:00]} Nf6 {[%emt 0:15:25] is the legacy move (9...b4). B43: Sicilian: Kan Variation: 5 Nc3.} 10. Bd2 {[%emt 0:00:00]} Nc6 {[%emt 0:00:00]} 11. f4 {[%emt 0:00:00]} d6 {[%emt 0:00:00]} 12. a4 {[%emt 0:00:00]} bxa4 $146 {[%emt 0:00:00]} ({Predecessor:} 12... b4 13. Na2 Be7 14. Kh1 a5 15. c3 O-O 16. Rac1 Qb8 17. Nd4 Rc8 18. Nxc6 Bxc6 19. cxb4 axb4 20. Nxb4 Bxa4 21. Rxc8+ Qxc8 {1-0 Jasny,S (2366)-Kratochvil,J (2230) Pardubice Czech op 22nd 2011 (4)}) 13. Rxa4 {[%emt 0:00:00]} Be7 {[%emt 0:00:00]} 14. Bxa6 {[%emt 0:00:00]} Bxa6 {[%emt 0:00:00]} 15. Rxa6 {[%emt 0:00:00]} Rxa6 {[%emt 0:00:00]} 16. Qxa6 {[%emt 0:00:00]} O-O {[%emt 0:00:00]} 17. Qc4 {[%emt 0:00:00]} Rc8 {[%emt 0:00:00]} 18. Kh1 {[%emt 0:00:00]} Qb7 {[%emt 0:00:00]} 19. Qe2 {[%emt 0:00:00]} Nb4 {[%emt 0:00:00]} 20. Bc1 {[%emt 0:00:00]} d5 {[%emt 0:00:00]} 21. f5 {[%emt 0:00:00]} dxe4 {[%emt 0:00:00]} 22. fxe6 {[%emt 0:00:00]} fxe6 {[%emt 0:00:00]} 23. Bg5 {[%emt 0:00:00]} Qa6 {[%emt 0:00:00]} 24. Qxa6 {[%emt 0:00:00]} Nxa6 {[%emt 0:00:00]} 25. Nxe4 {[%emt 0:00:00]} Rxc2 {[%emt 0:00:00]} 26. Nxf6+ {[%emt 0:00:00]} gxf6 {[%emt 0:00:00]} 27. Bxf6 {[%emt 0:00:00]} Bxf6 {[%emt 0:00:00]} 28. Rxf6 {[%emt 0:00:00]} Nc5 {[%emt 0:00:00]} 29. h4 {[%emt 0:00:00]} Nxb3 {[%emt 0:00:00]} 30. Rxe6 {[%emt 0:00:00]} Rc4 {[%emt 0:00:00]} 31. g3 {[%emt 0:00:00]} Rc2 {[%emt 0:00:00]} 32. Rb6 {[%emt 0:00:00]} Nd4 {[%emt 0:00:00]} 33. Kg1 {[%emt 0:00:00]} Kf7 {[%emt 0:00:00]} 34. b4 {[%emt 0:00:00]} Nf5 {[%emt 0:00:00]} 35. Rb7+ {[%emt 0:00:00]} Kg6 {[%emt 0:00:00]} 36. h5+ {[%emt 0:00:00]} Kh6 {[%emt 0:00:00]} 37. g4 {[%emt 0:00:00]} Ne3 {[%emt 0:00:00]} 38. g5+ {[%emt 0:00:00]} Kxh5 {[%emt 0:00:04]} 39. Rxh7+ {[%emt 0:00:00]} Kg4 {[%emt 0:00:16]} 40. Rh2 {[%emt 0:00:57]} Rc1+ {[%emt 0:00:21]} 41. Kf2 {[%emt 0:00:01]} Rc2+ {[%emt 0:00:51]} 42. Kg1 {[%emt 0:00:01]} Rc4 {[%emt 0:00:05]} 43. Kf2 {[%emt 0:00:15]} Kf4 {[%emt 0:00:25]} 44. Rh4+ {[%emt 0:00:15]} Ng4+ {[%emt 0:00:04]} 45. Ke2 {[%emt 0:00:01]} Kxg5 {[%emt 0:00:13]} 46. Rh8 {[%emt 0:00:01]} Kf4 {[%emt 0:00:17]} 47. Rh4 {[%emt 0:00:27]} Rxb4 {[%emt 0:00:18]} 48. Kd2 {[%emt 0:00:04]} Kf3 {[%emt 0:00:07]} 49. Kc3 {[%emt 0:00:04]} Re4 {[%emt 0:00:02]} 50. Rh3+ {[%emt 0:00:04]} Kf4 {[%emt 0:00:02]} 51. Rh4 {[%emt 0:00:02]} Ke5 {[%emt 0:00:05]} 52. Rh5+ {[%emt 0:00:04]} Kd6 {[%emt 0:00:02]} 53. Ra5 {[%emt 0:00:08]} Ne5 {[%emt 0:00:05]} 54. Ra6+ {[%emt 0:00:20]} Nc6 {[%emt 0:00:02]} 55. Kd3 {[%emt 0:00:04]} Rh4 {[%emt 0:00:01]} 56. Ke3 {[%emt 0:00:02]} Kd5 {[%emt 0:00:03]} 57. Rb6 {[%emt 0:00:16]} Nd4 {[%emt 0:00:12]} 58. Rb8 {[%emt 0:00:11]} Rh3+ {[%emt 0:00:05]} 59. Kf4 {[%emt 0:00:02]} Ne6+ {[%emt 0:00:01]} 60. Kg4 {[%emt 0:00:06]} Rh1 {[%emt 0:00:03]} 61. Kf3 {[%emt 0:00:08]} Rf1+ {[%emt 0:00:10]} 62. Ke3 {[%emt 0:00:03]} Ra1 {[%emt 0:00:07]} 63. Rb5+ {[%emt 0:00:05]} Nc5 {[%emt 0:00:03]} 64. Kf3 {[%emt 0:00:06]} Rf1+ {[%emt 0:00:08]} 65. Ke3 {[%emt 0:00:04]} Kc4 {[%emt 0:00:01]} 66. Rb8 {[%emt 0:00:05]} Re1+ {[%emt 0:00:03]} 67. Kf3 {[%emt 0:00:06]} Ne6 {[%emt 0:00:04]} 68. Rb6 {[%emt 0:00:22]} Nd4+ {[%emt 0:00:02]} 69. Kf4 {[%emt 0:00:08]} Kd3 {[%emt 0:00:01]} 70. Rd6 {[%emt 0:00:32]} Rf1+ {[%emt 0:00:09]} (70... Re4+ $2 71. Kg5 Kc4 72. Kg6 $19) 71. Kg5 {[%emt 0:00:02]} (71. Ke5 $2 Rf5#) 71... Ke4 {[%emt 0:00:03]} 72. Ra6 {[%emt 0:00:05]} Rf8 {[%emt 0:00:05]} 73. Ra4 {[%emt 0:00:03]} Rf5+ {[%emt 0:00:06]} 74. Kg4 {[%emt 0:00:07]} Rf1 {[%emt 0:00:13]} 75. Kg5 {[%emt 0:00:04]} Rf8 {[%emt 0:00:09]} (75... Rc1 $15) 76. Kg6 {[%emt 0:00:03]} Ke5 {[%emt 0:00:09]} 77. Ra5+ {[%emt 0:00:01]} Kf4 {[%emt 0:00:05]} 78. Ra4 {[%emt 0:00:05]} Ke4 {[%emt 0:00:01]} (78... Rg8+ 79. Kf7 $17) 79. Rb4 {[%emt 0:00:08]} Ke5 {[%emt 0:00:11]} 80. Ra4 {[%emt 0:00:06]} Rf6+ {[%emt 0:00:01]} 81. Kg5 {[%emt 0:00:10]} Rf5+ {[%emt 0:00:03]} 82. Kg4 {[%emt 0:00:04]} Rf4+ {[%emt 0:00:02]} 83. Kh3 {[%emt 0:00:15]} Rf8 {[%emt 0:00:04]} 84. Kg3 {[%emt 0:00:08]} Ke4 {[%emt 0:00:05]} 85. Ra7 {[%emt 0:00:06]} Nf5+ {[%emt 0:00:06]} 86. Kf2 {[%emt 0:00:04]} Rg8 {[%emt 0:00:10]} 87. Ra4+ {[%emt 0:00:11]} Nd4 {[%emt 0:00:00]} 88. Ra7 {[%emt 0:00:02]} Rf8+ {[%emt 0:00:05]} 89. Kg3 {[%emt 0:00:02]} Ne2+ {[%emt 0:00:08]} 90. Kg2 {[%emt 0:00:09]} Nf4+ {[%emt 0:00:01]} 91. Kf2 {[%emt 0:00:04]} Nd3+ {[%emt 0:00:02]} 92. Ke2 {[%emt 0:00:18]} Rf2+ {[%emt 0:00:01]} 93. Kd1 {[%emt 0:00:01]} Nc5 {[%emt 0:00:16]} 94. Ra3 {[%emt 0:00:09]} Rh2 {[%emt 0:00:06]} 95. Kc1 {[%emt 0:00:19]} Kd4 96. Kd1 {[%emt 0:00:00]} Ne4 {[%emt 0:00:03]} 97. Ke1 {[%emt 0:00:00]} Rb2 {[%emt 0:00:12]} 98. Kf1 {[%emt 0:00:00]} Nd2+ {[%emt 0:00:08]} 99. Ke1 {[%emt 0:00:05]} Nc4 {[%emt 0:00:10]} 100. Rh3 {[%emt 0:00:02]} Ne3 {[%emt 0:00:04]} 101. Rh4+ {[%emt 0:00:23]} Kd3 {[%emt 0:00:09]} 102. Rd4+ {[%emt 0:00:00]} Kxd4 {[%emt 0:00:00]} 1/2-1/2